[Event "Gibraltar Junior Intl U16 2019"]
[Site "Caleta"]
[Date "2019.08.16"]
[Round "2.9"]
[White "Aubury, Benjamin"]
[Black "Llena Velarde, David"]
[Result "0-1"]
[ECO "A90"]
[WhiteElo "1686"]
[BlackElo "1920"]
[Annotator "NA"]
[PlyCount "176"]
[EventDate "2019.08.16"]
[EventType "swiss"]
[EventCountry "GGB"]
[SourceTitle "playchess.com"]
[Source "ChessBase"]
[SourceQuality "1"]
[TimeControl "6600+10"]

1. d4 {[%emt 0:00:00]} e6 {[%emt 0:00:01]} 2. c4 {[%emt 0:01:56]} f5 {[%emt 0:00:20]} 3. g3 {[%emt 0:00:50]} Nf6 {[%emt 0:00:13]} 4. Bg2 {[%emt 0:00:31]} d5 {[%emt 0:00:18]} 5. Nh3 {[%emt 0:00:39]} c6 {[%emt 0:01:10]} 6. O-O {[%emt 0:00:32]} Bd6 {[%emt 0:02:26]} 7. Bf4 {[%emt 0:01:05]} O-O {[%emt 0:07:12]} 8. Nd2 {[%emt 0:02:46]} Qe7 {[%emt 0:07:55]} 9. Nf3 {[%emt 0:07:31]} Nbd7 {[%emt 0:04:03]} 10. cxd5 {[%emt 0:05:38]} exd5 {[%emt 0:00:51]} 11. Bxd6 {[%emt 0:01:59]} Qxd6 {[%emt 0:00:10]} 12. Nf4 {[%emt 0:00:56]} Ne4 {[%emt 0:04:39]} 13. e3 {[%emt 0:04:23]} a5 {[%emt 0:11:37]} 14. Rc1 {[%emt 0:04:17]} Ndf6 {[%emt 0:10:32]} 15. Ne5 {[%emt 0:03:13]} Bd7 {[%emt 0:07:03]} 16. Nfd3 {[%emt 0:08:00]} Rfc8 {[%emt 0:06:59]} 17. a3 {[%emt 0:07:04]} a4 {[%emt 0:01:02]} 18. Qe1 {[%emt 0:07:38]} Be8 {[%emt 0:07:49]} 19. h4 {[%emt 0:08:04]} Qe7 {[%emt 0:01:39]} 20. f3 {[%emt 0:01:55]} Nd6 {[%emt 0:00:08]} 21. Qb4 {[%emt 0:00:33]} Nd7 {[%emt 0:03:25]} 22. Rc2 {[%emt 0:02:12]} Kf8 {[%emt 0:03:01]} 23. g4 {[%emt 0:12:19]} Nxe5 {[%emt 0:06:22]} 24. Nxe5 {[%emt 0:00:57]} Rd8 {[%emt 0:00:12]} 25. g5 {[%emt 0:03:32]} Nb5 {[%emt 0:05:29]} 26. Qxe7+ {[%emt 0:01:03]} Kxe7 {[%emt 0:00:06]} 27. Bh3 {[%emt 0:02:19]} g6 {[%emt 0:00:50]} 28. Rd1 {[%emt 0:01:37]} Nd6 {[%emt 0:03:49]} 29. Bf1 {[%emt 0:01:05]} Rdc8 {[%emt 0:00:41]} 30. Nd3 {[%emt 0:01:57]} Bd7 {[%emt 0:01:02]} 31. Nc5 {[%emt 0:00:45]} Be6 {[%emt 0:00:27]} 32. Kf2 {[%emt 0:01:38]} h6 {[%emt 0:01:20]} 33. Kg3 {[%emt 0:04:40]} hxg5 {[%emt 0:01:12]} 34. hxg5 {[%emt 0:00:03]} Rh8 {[%emt 0:00:22]} 35. Bd3 {[%emt 0:01:49]} Bf7 {[%emt 0:01:33]} 36. Rh2 {[%emt 0:02:59]} Rxh2 {[%emt 0:00:08]} 37. Kxh2 {[%emt 0:00:04]} b6 {[%emt 0:00:05]} 38. Na6 {[%emt 0:00:11]} Rh8+ {[%emt 0:00:35]} 39. Kg2 {[%emt 0:00:27]} Rh5 {[%emt 0:00:09]} 40. f4 {[%emt 0:00:09]} Nb7 {[%emt 0:01:32]} 41. Nb4 {[%emt 0:00:44]} Kd6 {[%emt 0:00:39]} 42. Bc2 {[%emt 0:01:04]} b5 {[%emt 0:01:49]} 43. Nd3 {[%emt 0:00:44]} Na5 {[%emt 0:00:21]} 44. Rc1 {[%emt 0:00:45]} Nc4 {[%emt 0:00:24]} 45. Re1 {[%emt 0:00:50]} Be8 {[%emt 0:00:39]} 46. Re2 {[%emt 0:00:09]} Rh7 {[%emt 0:00:21]} 47. Re1 {[%emt 0:00:10]} Rh4 {[%emt 0:00:10]} 48. Re2 {[%emt 0:00:09]} Rg4+ {[%emt 0:00:02]} 49. Kh2 {[%emt 0:00:13]} Rh4+ {[%emt 0:00:27]} 50. Kg2 {[%emt 0:00:01]} Ke6 {[%emt 0:00:46]} 51. Nc5+ {[%emt 0:00:13]} Ke7 {[%emt 0:00:06]} 52. Nd3 {[%emt 0:00:02]} Kd6 {[%emt 0:00:04]} 53. Re1 {[%emt 0:00:15]} Rh7 {[%emt 0:00:13]} 54. Re2 {[%emt 0:00:05]} Re7 {[%emt 0:00:19]} 55. Kf2 {[%emt 0:00:07]} Rh7 {[%emt 0:00:25]} 56. Kg2 {[%emt 0:00:01]} Nb6 {[%emt 0:00:00]} 57. Nc5 {[%emt 0:00:32]} Rh4 {[%emt 0:00:11]} 58. Re1 {[%emt 0:00:13]} Nc4 {[%emt 0:00:22]} 59. Nd3 {[%emt 0:00:02]} Ke6 {[%emt 0:00:14]} 60. Nc5+ {[%emt 0:00:05]} Ke7 {[%emt 0:00:01]} 61. Nd3 {[%emt 0:00:01]} Kd6 {[%emt 0:00:00]} 62. Re2 {[%emt 0:00:10]} Rh8 {[%emt 0:00:18]} 63. Re1 {[%emt 0:00:07]} Ke6 {[%emt 0:00:02]} 64. Nc5+ {[%emt 0:00:07]} Ke7 {[%emt 0:00:04]} 65. Nd3 {[%emt 0:00:02]} Rh4 {[%emt 0:00:59]} 66. Re2 {[%emt 0:00:08]} Kd6 {[%emt 0:00:03]} 67. Re1 {[%emt 0:00:11]} Nd2 {[%emt 0:00:01]} 68. Nc5 {[%emt 0:01:16]} Rg4+ {[%emt 0:00:22]} 69. Kf2 {[%emt 0:00:35]} Bd7 {[%emt 0:00:33]} 70. Rd1 {[%emt 0:00:47]} Nc4 {[%emt 0:00:07]} 71. Nd3 {[%emt 0:00:05]} Rh4 {[%emt 0:00:06]} 72. Ne1 {[%emt 0:02:21]} Rh2+ {[%emt 0:00:08]} 73. Ng2 {[%emt 0:00:04]} Nxe3 {[%emt 0:00:11]} 74. Kxe3 {[%emt 0:00:16]} Rxg2 {[%emt 0:00:01]} 75. Rc1 {[%emt 0:00:20]} Rg3+ {[%emt 0:00:18]} 76. Kf2 {[%emt 0:00:03]} Rh3 {[%emt 0:00:03]} 77. Kg2 {[%emt 0:00:05]} Re3 {[%emt 0:00:01]} 78. Kf2 {[%emt 0:00:19]} Re7 {[%emt 0:00:33]} 79. Bd3 {[%emt 0:00:12]} Rh7 {[%emt 0:00:11]} 80. Kg3 {[%emt 0:00:05]} Rh8 {[%emt 0:00:01]} 81. Bb1 {[%emt 0:00:16]} Rb8 {[%emt 0:00:05]} 82. Rc5 {[%emt 0:00:15]} b4 {[%emt 0:00:04]} 83. Bc2 {[%emt 0:00:09]} bxa3 {[%emt 0:00:10]} 84. bxa3 {[%emt 0:00:03]} Rb2 {[%emt 0:00:12]} 85. Bxa4 {[%emt 0:00:12]} Rd2 {[%emt 0:00:01]} 86. Rc3 {[%emt 0:00:11]} Rxd4 {[%emt 0:00:05]} 87. Bb3 {[%emt 0:00:06]} c5 {[%emt 0:00:03]} 88. a4 {[%emt 0:00:09]} Bxa4 {[%emt 0:00:01]} 0-1

[Event "Gibraltar Junior Intl U16 2019"]
[Site "Caleta"]
[Date "2019.08.16"]
[Round "2.10"]
[White "Howell, Oliver W"]
[Black "Usharovsky, Ron"]
[Result "1-0"]
[ECO "A11"]
[WhiteElo "1847"]
[BlackElo "1670"]
[Annotator "NA"]
[PlyCount "111"]
[EventDate "2019.08.16"]
[EventType "swiss"]
[EventCountry "GGB"]
[SourceTitle "playchess.com"]
[Source "ChessBase"]
[SourceQuality "1"]
[TimeControl "6600+10"]

1. Nf3 {[%emt 0:00:00]} Nf6 {[%emt 0:00:00]} 2. c4 {[%emt 0:00:09]} c6 {[%emt 0:00:09]} 3. g3 {[%emt 0:00:24]} d5 {[%emt 0:00:18]} 4. cxd5 {[%emt 0:00:27]} cxd5 {[%emt 0:00:10]} 5. Bg2 {[%emt 0:00:03]} Bf5 {[%emt 0:01:09]} 6. O-O {[%emt 0:00:10]} Nc6 {[%emt 0:00:30]} 7. d3 {[%emt 0:00:32]} e6 {[%emt 0:00:39]} 8. Nc3 {[%emt 0:00:36]} a6 {[%emt 0:02:25]} 9. Bg5 {[%emt 0:01:59]} Be7 {[%emt 0:00:44]} 10. Re1 {[%emt 0:03:00]} d4 {[%emt 0:03:11]} 11. Na4 {[%emt 0:08:03]} Rc8 {[%emt 0:02:53]} 12. Rc1 {[%emt 0:02:29]} b5 {[%emt 0:12:17]} 13. Nc5 {[%emt 0:00:36]} Qb6 {[%emt 0:00:45]} 14. Nb3 {[%emt 0:07:03]} O-O {[%emt 0:01:19]} 15. Nh4 {[%emt 0:04:51]} Nd5 {[%emt 0:06:20]} 16. Bxe7 {[%emt 0:02:24]} Ncxe7 {[%emt 0:02:11]} 17. Nxf5 {[%emt 0:01:25]} exf5 {[%emt 0:02:02]} 18. Qd2 {[%emt 0:01:49]} Qf6 {[%emt 0:06:03]} 19. Rxc8 {[%emt 0:01:52]} Rxc8 {[%emt 0:00:31]} 20. Rc1 {[%emt 0:00:24]} Rc6 {[%emt 0:15:04]} 21. Rxc6 {[%emt 0:02:58]} Qxc6 {[%emt 0:00:16]} 22. Nxd4 {[%emt 0:00:54]} Qc5 {[%emt 0:01:59]} 23. Bxd5 {[%emt 0:01:14]} Qxd4 {[%emt 0:04:34]} 24. Bf3 {[%emt 0:00:42]} g6 {[%emt 0:02:40]} 25. Qc3 {[%emt 0:02:01]} Qxc3 {[%emt 0:03:19]} 26. bxc3 {[%emt 0:00:08]} Kf8 {[%emt 0:00:13]} 27. Kf1 {[%emt 0:00:27]} Ke8 {[%emt 0:00:22]} 28. Ke1 {[%emt 0:00:07]} Kd7 {[%emt 0:00:07]} 29. Kd2 {[%emt 0:00:28]} Kd6 {[%emt 0:00:18]} 30. Kc2 {[%emt 0:00:51]} a5 {[%emt 0:03:23]} 31. Kb3 {[%emt 0:00:16]} Kc5 {[%emt 0:02:49]} 32. d4+ {[%emt 0:01:34]} Kb6 {[%emt 0:01:19]} 33. a3 {[%emt 0:01:13]} Nc8 {[%emt 0:01:13]} 34. e3 {[%emt 0:01:50]} Nd6 {[%emt 0:00:21]} 35. Bd5 {[%emt 0:01:03]} h6 {[%emt 0:01:07]} 36. c4 {[%emt 0:03:18]} bxc4+ {[%emt 0:00:20]} 37. Bxc4 {[%emt 0:00:11]} g5 {[%emt 0:00:34]} 38. Bd5 {[%emt 0:01:33]} Kb5 {[%emt 0:00:59]} 39. a4+ {[%emt 0:00:40]} Kb6 {[%emt 0:00:17]} 40. f3 {[%emt 0:00:20]} f6 {[%emt 0:00:52]} 41. e4 {[%emt 0:02:56]} fxe4 {[%emt 0:01:24]} 42. fxe4 {[%emt 0:00:09]} Ne8 {[%emt 0:06:05]} 43. Kc4 {[%emt 0:01:52]} Nd6+ {[%emt 0:00:21]} 44. Kd3 {[%emt 0:00:10]} Ne8 {[%emt 0:00:33]} 45. e5 {[%emt 0:00:48]} fxe5 {[%emt 0:00:20]} 46. dxe5 {[%emt 0:00:18]} Kc5 {[%emt 0:00:17]} 47. Ke4 {[%emt 0:02:39]} Nc7 {[%emt 0:00:57]} 48. Bb3 {[%emt 0:00:29]} Kb4 {[%emt 0:01:42]} 49. Bd1 {[%emt 0:00:18]} Kc5 {[%emt 0:00:38]} 50. Kf5 {[%emt 0:00:34]} Kc6 {[%emt 0:00:29]} 51. Kf6 {[%emt 0:01:22]} Kd7 {[%emt 0:00:27]} 52. e6+ {[%emt 0:01:05]} Kd8 {[%emt 0:00:28]} 53. e7+ {[%emt 0:00:54]} Ke8 {[%emt 0:00:15]} 54. Bh5+ {[%emt 0:00:09]} Kd7 {[%emt 0:00:08]} 55. Kf7 {[%emt 0:00:37]} Ne8 {[%emt 0:00:29]} 56. Bg4+ {[%emt 0:00:13]} 1-0

[Event "Gibraltar Junior Intl U16 2019"]
[Site "Caleta"]
[Date "2019.08.16"]
[Round "2.11"]
[White "Hussain, Adam"]
[Black "Gutierrez Lupion, Daniel"]
[Result "0-1"]
[ECO "A45"]
[WhiteElo "1515"]
[BlackElo "1811"]
[Annotator "NA"]
[PlyCount "86"]
[EventDate "2019.08.16"]
[EventType "swiss"]
[EventCountry "GGB"]
[SourceTitle "playchess.com"]
[Source "ChessBase"]
[SourceQuality "1"]
[TimeControl "6600+10"]

1. d4 {[%emt 0:00:00]} Nf6 {[%emt 0:00:00]} 2. Nc3 {[%emt 0:00:00]} e6 {[%emt 0:00:07]} 3. Bg5 {[%emt 0:00:02]} Bb4 {[%emt 0:00:14]} 4. e4 {[%emt 0:00:06]} h6 {[%emt 0:00:12]} 5. Bxf6 {[%emt 0:01:07]} Qxf6 {[%emt 0:00:08]} 6. Nf3 {[%emt 0:00:04]} b6 {[%emt 0:00:26]} 7. a3 {[%emt 0:00:28]} Bxc3+ {[%emt 0:00:14]} 8. bxc3 {[%emt 0:00:05]} Bb7 {[%emt 0:00:11]} 9. Bd3 {[%emt 0:00:12]} d6 {[%emt 0:00:30]} 10. Qe2 {[%emt 0:01:10]} Nd7 {[%emt 0:00:33]} 11. a4 {[%emt 0:01:01]} O-O {[%emt 0:00:36]} 12. O-O {[%emt 0:00:59]} e5 {[%emt 0:00:47]} 13. a5 {[%emt 0:02:48]} Rfe8 {[%emt 0:03:29]} 14. axb6 {[%emt 0:07:46]} axb6 {[%emt 0:00:34]} 15. d5 {[%emt 0:00:37]} Nc5 {[%emt 0:00:37]} 16. Bb5 {[%emt 0:00:49]} Red8 {[%emt 0:01:35]} 17. Nd2 {[%emt 0:00:48]} Qf4 {[%emt 0:03:39]} 18. f3 {[%emt 0:03:32]} f5 {[%emt 0:08:19]} 19. Kh1 {[%emt 0:14:14]} Rf8 {[%emt 0:10:42]} 20. Kg1 {[%emt 0:02:26]} Ba6 {[%emt 0:08:45]} 21. Bxa6 {[%emt 0:01:03]} Rxa6 {[%emt 0:00:07]} 22. Rxa6 {[%emt 0:00:37]} Nxa6 {[%emt 0:00:08]} 23. Ra1 {[%emt 0:02:45]} Nc5 {[%emt 0:00:29]} 24. Ra7 {[%emt 0:02:15]} fxe4 {[%emt 0:01:30]} 25. Rxc7 {[%emt 0:03:22]} exf3 {[%emt 0:00:37]} 26. Nxf3 {[%emt 0:01:40]} Qc1+ {[%emt 0:03:55]} 27. Ne1 {[%emt 0:03:56]} Rf4 {[%emt 0:01:12]} 28. Rxc5 {[%emt 0:03:07]} bxc5 {[%emt 0:00:41]} 29. g3 {[%emt 0:00:14]} Rf6 {[%emt 0:06:23]} 30. Kg2 {[%emt 0:01:09]} Qa1 {[%emt 0:01:03]} 31. Qe3 {[%emt 0:01:19]} Qd1 {[%emt 0:00:30]} 32. c4 {[%emt 0:01:50]} Kf7 {[%emt 0:01:19]} 33. h3 {[%emt 0:01:03]} Qh5 {[%emt 0:07:30]} 34. Nd3 {[%emt 0:03:54]} Qf5 {[%emt 0:04:46]} 35. Qe2 {[%emt 0:00:37]} e4 {[%emt 0:06:52]} 36. Nf2 {[%emt 0:00:45]} Qxf2+ {[%emt 0:05:51]} 37. Qxf2 {[%emt 0:00:24]} Rxf2+ {[%emt 0:00:04]} 38. Kxf2 {[%emt 0:00:05]} Kf6 {[%emt 0:00:04]} 39. Ke3 {[%emt 0:00:05]} Kf5 {[%emt 0:01:14]} 40. Kf2 {[%emt 0:01:37]} h5 {[%emt 0:01:59]} 41. Ke3 {[%emt 0:02:57]} Ke5 {[%emt 0:01:24]} 42. c3 {[%emt 0:01:20]} g5 {[%emt 0:00:01]} 43. g4 {[%emt 0:00:17]} h4 0-1

[Event "Gibraltar Junior Intl U16 2019"]
[Site "Caleta"]
[Date "2019.08.16"]
[Round "2.12"]
[White "Krivenko, Dion"]
[Black "Kuzhelev, Timur"]
[Result "1-0"]
[ECO "A41"]
[WhiteElo "1810"]
[BlackElo "1597"]
[Annotator "NA"]
[PlyCount "33"]
[EventDate "2019.08.16"]
[EventType "swiss"]
[EventCountry "GGB"]
[SourceTitle "playchess.com"]
[Source "ChessBase"]
[SourceQuality "1"]
[TimeControl "6600+10"]

1. e4 {[%emt 0:00:00]} g6 {[%emt 0:00:33]} 2. Nf3 {[%emt 0:01:12]} Bg7 {[%emt 0:00:05]} 3. g3 {[%emt 0:00:47]} d6 {[%emt 0:00:13]} 4. Bg2 {[%emt 0:00:10]} e5 {[%emt 0:00:26]} 5. d4 {[%emt 0:01:44]} Nd7 {[%emt 0:01:20]} 6. O-O {[%emt 0:01:42]} Ne7 {[%emt 0:00:27]} 7. Nc3 {[%emt 0:07:50]} O-O {[%emt 0:00:14]} 8. dxe5 {[%emt 0:04:38]} dxe5 {[%emt 0:01:03]} 9. Be3 {[%emt 0:02:48]} f5 {[%emt 0:04:42]} 10. Ng5 {[%emt 0:05:26]} Nf6 {[%emt 0:04:00]} 11. Qe2 {[%emt 0:03:14]} c6 {[%emt 0:06:17]} 12. Qc4+ {[%emt 0:02:38]} Kh8 {[%emt 0:01:02]} 13. Nf7+ {[%emt 0:00:36]} Rxf7 {[%emt 0:00:14]} 14. Qxf7 {[%emt 0:00:03]} Qf8 {[%emt 0:01:16]} 15. Qxf8+ {[%emt 0:01:37]} Bxf8 {[%emt 0:00:05]} 16. Rfd1 {[%emt 0:03:13]} Be6 {[%emt 0:05:08]} 17. Rd6 {[%emt 0:02:53]} 1-0

[Event "Gibraltar Junior Intl U16 2019"]
[Site "Caleta"]
[Date "2019.08.16"]
[Round "2.13"]
[White "Tombolis, Christopher"]
[Black "Akeya-Price, Robert"]
[Result "1/2-1/2"]
[ECO "E46"]
[WhiteElo "1874"]
[BlackElo "1988"]
[Annotator "NA"]
[PlyCount "34"]
[EventDate "2019.08.16"]
[EventType "swiss"]
[EventCountry "GGB"]
[SourceTitle "playchess.com"]
[Source "ChessBase"]
[SourceQuality "1"]
[TimeControl "6600+10"]

1. d4 {[%emt 0:00:00]} Nf6 {[%emt 0:00:10]} 2. c4 {[%emt 0:00:00]} e6 {[%emt 0:00:11]} 3. Nc3 {[%emt 0:00:05]} Bb4 {[%emt 0:00:19]} 4. e3 {[%emt 0:00:06]} O-O {[%emt 0:00:25]} 5. Nge2 {[%emt 0:00:07]} d5 {[%emt 0:01:50]} 6. a3 {[%emt 0:00:06]} Bxc3+ {[%emt 0:00:57]} 7. Nxc3 {[%emt 0:00:07]} Nbd7 {[%emt 0:00:07]} 8. Bd3 {[%emt 0:07:21]} dxc4 {[%emt 0:01:24]} 9. Bxc4 {[%emt 0:00:09]} c5 {[%emt 0:00:19]} 10. O-O {[%emt 0:01:19]} Nb6 {[%emt 0:03:48]} 11. Qd3 {[%emt 0:04:11]} Qe7 {[%emt 0:08:10]} 12. Bb3 {[%emt 0:02:47]} Rd8 {[%emt 0:13:26]} 13. Bc2 {[%emt 0:02:02]} c4 {[%emt 0:02:12]} 14. Qe2 {[%emt 0:00:34]} e5 {[%emt 0:00:52]} 15. dxe5 {[%emt 0:04:25]} Qxe5 {[%emt 0:00:14]} 16. f4 {[%emt 0:03:33]} Qc5 {[%emt 0:06:24]} 17. Ne4 {[%emt 0:01:42]} Qe7 {[%emt 0:02:06]} 1/2-1/2

[Event "Gibraltar Junior Intl U16 2019"]
[Site "Caleta"]
[Date "2019.08.16"]
[Round "2.14"]
[White "Miller, Max C"]
[Black "Mendis, Vidura"]
[Result "1/2-1/2"]
[ECO "C00"]
[WhiteElo "1563"]
[BlackElo "1528"]
[Annotator "NA"]
[PlyCount "36"]
[EventDate "2019.08.16"]
[EventType "swiss"]
[EventCountry "GGB"]
[SourceTitle "playchess.com"]
[Source "ChessBase"]
[SourceQuality "1"]
[TimeControl "6600+10"]

1. Nf3 {[%emt 0:00:00]} e6 {[%emt 0:00:00]} 2. e4 {[%emt 0:00:47]} d5 {[%emt 0:00:16]} 3. exd5 {[%emt 0:00:06]} exd5 {[%emt 0:00:21]} 4. c4 {[%emt 0:00:58]} dxc4 {[%emt 0:00:15]} 5. Bxc4 {[%emt 0:00:08]} Nc6 {[%emt 0:00:23]} 6. O-O {[%emt 0:00:16]} Be7 {[%emt 0:00:21]} 7. Qb3 {[%emt 0:02:23]} Nh6 {[%emt 0:00:09]} 8. d4 {[%emt 0:01:18]} O-O {[%emt 0:03:27]} 9. Bxh6 {[%emt 0:05:20]} gxh6 {[%emt 0:01:11]} 10. Ne5 {[%emt 0:13:07]} Qe8 {[%emt 0:08:49]} 11. Qg3+ {[%emt 0:03:10]} Kh8 {[%emt 0:00:36]} 12. Nxc6 {[%emt 0:00:34]} Qxc6 {[%emt 0:00:27]} 13. Qe5+ {[%emt 0:00:17]} Bf6 {[%emt 0:00:29]} 14. Qf4 {[%emt 0:08:27]} Bg5 {[%emt 0:01:55]} 15. Qe5+ {[%emt 0:05:57]} Bf6 {[%emt 0:00:07]} 16. Qf4 {[%emt 0:01:03]} Bg5 {[%emt 0:00:06]} 17. d5 {[%emt 0:00:22]} Bxf4 {[%emt 0:00:06]} 18. dxc6 {[%emt 0:00:02]} Bg5 {[%emt 0:00:03]} 1/2-1/2

[Event "Gibraltar Junior Intl U16 2019"]
[Site "Caleta"]
[Date "2019.08.16"]
[Round "2.16"]
[White "Guilfanov, Raphael"]
[Black "Maldonado Mena, German"]
[Result "0-1"]
[ECO "D02"]
[WhiteElo "1493"]
[BlackElo "1850"]
[Annotator "NA"]
[PlyCount "56"]
[EventDate "2019.08.16"]
[EventType "swiss"]
[EventCountry "GGB"]
[SourceTitle "playchess.com"]
[Source "ChessBase"]
[SourceQuality "1"]
[TimeControl "6600+10"]

1. d4 {[%emt 0:00:00]} d5 {[%emt 0:00:00]} 2. Bf4 {[%emt 0:00:00]} Nf6 {[%emt 0:00:20]} 3. e3 {[%emt 0:00:11]} c5 {[%emt 0:00:13]} 4. c3 {[%emt 0:00:28]} Nc6 {[%emt 0:00:15]} 5. Nf3 {[%emt 0:00:12]} Qb6 {[%emt 0:00:08]} 6. Qc2 {[%emt 0:00:27]} c4 {[%emt 0:00:34]} 7. Nbd2 {[%emt 0:00:26]} g6 {[%emt 0:01:14]} 8. Be2 {[%emt 0:00:29]} Bf5 {[%emt 0:00:06]} 9. Qc1 {[%emt 0:05:55]} Nh5 {[%emt 0:00:29]} 10. Be5 {[%emt 0:05:58]} f6 {[%emt 0:01:38]} 11. Bg3 {[%emt 0:13:26]} Nxg3 {[%emt 0:00:50]} 12. hxg3 {[%emt 0:00:18]} g5 {[%emt 0:01:10]} 13. g4 {[%emt 0:16:13]} Bxg4 {[%emt 0:00:57]} 14. Qc2 {[%emt 0:00:17]} O-O-O {[%emt 0:03:08]} 15. Nxg5 {[%emt 0:03:27]} Bxe2 {[%emt 0:01:35]} 16. Qf5+ {[%emt 0:00:16]} Rd7 {[%emt 0:00:48]} 17. Nf7 {[%emt 0:01:18]} Bd3 {[%emt 0:00:34]} 18. Qe6 {[%emt 0:02:07]} Qxb2 {[%emt 0:00:58]} 19. Rd1 {[%emt 0:01:21]} Nd8 {[%emt 0:00:11]} 20. Nxd8 {[%emt 0:00:58]} Kxd8 {[%emt 0:00:03]} 21. Rh5 {[%emt 0:00:50]} Qb6 {[%emt 0:01:08]} 22. Qg4 {[%emt 0:03:49]} Bc2 {[%emt 0:00:42]} 23. Qg3 {[%emt 0:02:01]} Qc7 {[%emt 0:02:05]} 24. f4 {[%emt 0:05:18]} Bxd1 {[%emt 0:00:23]} 25. Rxh7 {[%emt 0:00:11]} Rxh7 {[%emt 0:00:34]} 26. Qg8 {[%emt 0:00:16]} Rh1+ {[%emt 0:00:05]} 27. Kf2 {[%emt 0:00:14]} Rd6 {[%emt 0:00:06]} 28. Qxf8+ {[%emt 0:00:40]} Kd7 {[%emt 0:00:07]} 0-1

[Event "Gibraltar Junior Intl U16 2019"]
[Site "Caleta"]
[Date "2019.08.16"]
[Round "2.17"]
[White "Walker, Max"]
[Black "Garcia Calero, Jose Maria"]
[Result "1-0"]
[ECO "E83"]
[WhiteElo "1667"]
[BlackElo "1395"]
[Annotator "NA"]
[PlyCount "73"]
[EventDate "2019.08.16"]
[EventType "swiss"]
[EventCountry "GGB"]
[SourceTitle "playchess.com"]
[Source "ChessBase"]
[SourceQuality "1"]
[TimeControl "6600+10"]

1. e4 {[%emt 0:00:00]} d6 {[%emt 0:09:21]} 2. d4 {[%emt 0:00:02]} Nf6 {[%emt 0:00:12]} 3. f3 {[%emt 0:00:16]} g6 {[%emt 0:00:11]} 4. c4 {[%emt 0:00:12]} Bg7 {[%emt 0:01:00]} 5. Nc3 {[%emt 0:00:24]} O-O {[%emt 0:00:53]} 6. Bd3 {[%emt 0:00:21]} Nc6 {[%emt 0:00:23]} 7. Be3 {[%emt 0:00:22]} e5 {[%emt 0:01:09]} 8. d5 {[%emt 0:00:03]} Ne7 {[%emt 0:02:12]} 9. Nge2 {[%emt 0:00:25]} Ne8 {[%emt 0:01:19]} 10. b4 {[%emt 0:00:24]} f5 {[%emt 0:00:40]} 11. O-O {[%emt 0:00:08]} f4 {[%emt 0:03:37]} 12. Bf2 {[%emt 0:00:02]} Rf7 {[%emt 0:03:53]} 13. c5 {[%emt 0:00:31]} Bf8 {[%emt 0:01:46]} 14. Rc1 {[%emt 0:01:22]} Rg7 {[%emt 0:00:43]} 15. Nb5 {[%emt 0:02:54]} a6 {[%emt 0:03:40]} 16. Na3 {[%emt 0:00:20]} g5 {[%emt 0:01:47]} 17. Kh1 {[%emt 0:02:48]} g4 {[%emt 0:20:02]} 18. cxd6 {[%emt 0:01:59]} Qxd6 {[%emt 0:02:46]} 19. Qb3 {[%emt 0:02:25]} Kh8 {[%emt 0:00:55]} 20. Nc4 {[%emt 0:00:59]} Qf6 {[%emt 0:09:02]} 21. Nxe5 {[%emt 0:01:30]} Qxe5 {[%emt 0:03:48]} 22. Bd4 {[%emt 0:00:12]} Qg5 {[%emt 0:00:37]} 23. Bxg7+ {[%emt 0:00:12]} Bxg7 {[%emt 0:00:09]} 24. fxg4 {[%emt 0:00:39]} Ng6 {[%emt 0:10:49]} 25. h3 {[%emt 0:02:52]} Be5 {[%emt 0:05:20]} 26. Bb1 {[%emt 0:02:06]} Qh4 {[%emt 0:11:54]} 27. Kg1 {[%emt 0:02:30]} Bd7 {[%emt 0:02:03]} 28. a4 {[%emt 0:09:42]} Nf6 {[%emt 0:02:40]} 29. Rcd1 {[%emt 0:09:51]} Re8 {[%emt 0:03:06]} 30. Nd4 {[%emt 0:03:35]} Rg8 {[%emt 0:06:45]} 31. Nf3 {[%emt 0:00:20]} Qg3 {[%emt 0:00:02]} 32. Qc2 {[%emt 0:00:38]} Bd6 {[%emt 0:00:59]} 33. g5 {[%emt 0:01:49]} Ne8 {[%emt 0:01:30]} 34. e5 {[%emt 0:00:26]} Bxb4 {[%emt 0:00:11]} 35. e6 {[%emt 0:00:11]} Bc8 {[%emt 0:00:11]} 36. Qb2+ {[%emt 0:00:12]} Ng7 {[%emt 0:00:14]} 37. Qxb4 {[%emt 0:00:25]} 1-0